Cogmind - Beta 13 @@@ ROGUE MODE // 2024.07.13 @ 17:21:38 Player: Sionnis Result: Destroyed by AG-60355 with Assembled Focal Cannon Performance ------------- Evolutions (4) 2000 Regions Visited (15) 3000 Robots Destroyed (302) 1510 Value Destroyed (10360) 10360 Prototype IDs (63) 1260 Alien Tech Used (0) 0 Bonus (6550) 6550 TOTAL SCORE: 24680 Bonus ------- Triggered High Security 1000 High Alert Combat Kills 3438 Follower Combat Kills 319 Aligned with FarCom 300 Met Data Miner 300 Met Imprinter 300 Was Imprinted 300 Destroyed Z-Imprinter 1000 Friendly Fire -407 Cogmind --------- Core Integrity 0/850 Matter 160/300 Energy 57/100 System Corruption 0% Temperature Cool (6) Movement Treading (160) Location -6/Deep Caves Parts ------- > --- POWER (1) -------- Zionite Light DM Reactor > --- PROPULSION (4) --- Medium Treads Medium Treads Improved Medium Treads Improved Medium Treads > --- UTILITY (7) ------ Experimental Heat Sink Huge Storage Unit Advanced Signal Interpreter Advanced Targeting Computer Experimental Targeting Computer Zionite Weapon Casing AS-neutralizer No. 17b > --- WEAPON (3) ------- High-powered Shock Rifle High-powered Shock Rifle Proton Cannon > --- INVENTORY (25) --- Fission Core Zionite Light DM Reactor Advanced Treads Experimental Heat Sink Coolant Injector Advanced Energy Well (500) Zionite Biocell (600) Zionite Biocell (600) Advanced Sensor Array Launcher Guidance Computer Hardened Light Armor Plating Hardened Medium Armor Plating Layered Medium Armor Plating Layered Medium Armor Plating Layered Medium Armor Plating Force Field Authchip [Armor] Authchip [Armor] Authchip [Weapon] Authchip [Weapon] Hacking Drone Bay (1/1) High-powered Shock Rifle Zionite Laser-M Heavy Plasma Cannon RU-N14's Throwing Claymores (1) Peak State ------------ > --- POWER ------------ Zionite Light DM Reactor > --- PROPULSION ------- Medium Treads Medium Treads Improved Medium Treads Improved Medium Treads > --- UTILITY ---------- Experimental Heat Sink Huge Storage Unit Advanced Energy Well Advanced Signal Interpreter Advanced Targeting Computer Experimental Targeting Computer Zionite Light Carapace > --- WEAPON ----------- Proton Cannon Heavy Plasma Cannon RU-N14's Throwing Claymores > --- INVENTORY -------- Reinforced Deuterium Engine Fission Core Advanced Treads Experimental Heat Sink Coolant Injector Energy Well Zionite Biocell Advanced Sensor Array Launcher Guidance Computer Hardened Light Armor Plating Hardened Medium Armor Plating Layered Medium Armor Plating Layered Medium Armor Plating Layered Medium Armor Plating Force Field Authchip [Armor] Authchip [Armor] Authchip [Weapon] Authchip [Weapon] Hacking Drone Bay AS-neutralizer No. 17b High-powered Shock Rifle High-powered Shock Rifle High-powered Shock Rifle Zionite Laser-M [Rating: 91] Favorites ----------- Power Fission Core Engine Heavy Deuterium Engine Power Core Fission Core Reactor Antimatter Reactor Propulsion Improved Medium Treads Treads Improved Medium Treads Leg Advanced Myomer Leg Wheel Armored Wheel Hover Unit Backup Propulsion III Utility Huge Storage Unit Device Advanced Heat Sink Storage Huge Storage Unit Processor Experimental Core Analyzer Hackware Makeshift Hacking Suite Protection Layered Medium Armor Plating Weapon High-powered Shock Rifle Energy Gun High-powered Shock Rifle Energy Cannon Heavy Plasma Cannon Ballistic Gun 8R-AWN's Boregun Ballistic Cannon Flak Cannon Launcher Proton Missile Launcher Special Weapon RU-N14's Throwing Claymores Slashing Weapon Makeshift Sword Special Melee Weapon Datajack Build | -11 -10 -10 -10 -9 -8 -7 -7 -7 -7 -6 -6 -6 -6 -6 -6 ------- Run | Yrd Mat Min Exi Min Mat Fac Low Low Dat Pro Fac Low Low Zio Dee Slots Evolved 8 | . . . . . 4 2 . . . . 2 . . . . Power . | . . . . . . . . . . . . . . . . Propulsion 2 | . . . . . 1 . . . . . 1 . . . . Utility 5 | . . . . . 2 2 . . . . 1 . . . . Weapon 1 | . . . . . 1 . . . . . . . . . . Parts Attached 470 | 6 19 5 26 . 56 77 17 6 12 18 156 15 10 31 16 Power 24 | 1 2 . 5 . 1 1 . . . 5 5 . . 3 1 Engine 11 | 1 2 . 1 . . 1 . . . 3 1 . . 2 . Core 8 | . . . 4 . 1 . . . . . 2 . . 1 . Reactor 5 | . . . . . . . . . . 2 2 . . . 1 Propulsion 70 | 2 5 3 5 . 13 3 3 2 . 1 21 3 2 3 4 Treads 52 | 2 . 2 3 . 11 3 3 2 . 1 15 3 2 3 2 Leg 4 | . . . 2 . 2 . . . . . . . . . . Wheel 12 | . 5 1 . . . . . . . . 6 . . . . Hover 2 | . . . . . . . . . . . . . . . 2 Flight . | . . . . . . . . . . . . . . . . Utility 178 | 1 5 1 6 . 17 29 4 1 5 9 64 7 5 17 7 Device 65 | . 2 . 1 . 8 14 2 . 1 3 23 3 1 4 3 Storage 15 | 1 2 . 2 . 2 1 . . . 1 3 . . 1 2 Processor 17 | . 1 . 1 . 1 3 . . . 2 6 . 1 2 . Hackware 6 | . . . . . . . . . . . 2 . . 4 . Protection 75 | . . 1 2 . 6 11 2 1 4 3 30 4 3 6 2 Artifact . | . . . . . . . . . . . . . . . . Weapon 198 | 2 7 1 10 . 25 44 10 3 7 3 66 5 3 8 4 Energy Gun 77 | 1 . . 1 . 17 12 5 1 1 . 28 2 3 3 3 Energy Cannon 51 | . . . 1 . 3 13 . 2 1 . 25 3 . 2 1 Ballistic Gun 40 | 1 7 1 7 . 1 8 3 . 2 1 9 . . . . Ballistic Cannon 1 | . . . . . . . . . . 1 . . . . . Launcher 19 | . . . . . 4 9 2 . 1 . 3 . . . . Special Weapon 8 | . . . . . . 2 . . 2 1 1 . . 2 . Impact Weapon . | . . . . . . . . . . . . . . . . Slashing Weapon 1 | . . . . . . . . . . . . . . 1 . Piercing Weapon . | . . . . . . . . . . . . . . . . Special Melee Weapon 1 | . . . 1 . . . . . . . . . . . . Unidentified Prototypes 26 | . 1 . 3 . 6 4 . . . . 2 . . 2 8 Corrupted Parts 19 | . . . . . 1 1 3 2 1 3 4 1 . 3 . System Corruption 90 | . . . . . 2 2 21 12 1 10 23 9 . 10 . Parts Lost 76 | . . . 6 . 6 8 7 4 8 6 20 3 3 . 5 Power 6 | . . . 1 . 1 1 . . . 1 2 . . . . Propulsion 18 | . . . 1 . 1 2 1 2 . 2 6 1 . . 2 Utility 26 | . . . 3 . 2 1 2 . 4 1 8 1 2 . 2 Weapon 26 | . . . 1 . 2 4 4 2 4 2 4 1 1 . 1 Highest Loss Streak 6 | . . . 5 . 2 2 5 2 6 5 4 3 2 . 4 To Critical Strikes 5 | . . . 3 . . . . . . 1 1 . . . . Average Slot Usage (%) 98 | . 96 100 92 100 98 99 92 99 95 97 97 99 99 99 98 Engine 2 | . 11 14 8 . . 3 7 7 7 2 . . . . . Core 4 | . . . 4 14 9 3 . . . . 2 6 6 5 3 Treads 22 | . 2 12 18 28 25 22 17 22 23 19 23 24 26 26 25 Wheel 1 | . 25 15 . . . . . . . . . 1 . . . Device 12 | . 4 . 2 14 8 15 20 23 23 20 13 10 13 8 7 Storage 7 | . 14 14 13 14 9 7 7 7 7 7 6 6 6 6 7 Processor 12 | . 9 3 3 . 8 11 7 7 7 7 16 20 18 17 20 Protection 8 | . . 10 8 . 8 9 9 7 6 9 8 8 6 11 9 Energy Gun 11 | . . . . 14 21 10 5 15 . 1 11 12 18 16 4 Energy Cannon 4 | . . . . 14 4 8 4 6 4 7 4 6 1 2 8 Ballistic Gun 3 | . 26 28 14 . . . 4 . 6 10 2 . . . . Naked Turns . | . . . . . . . . . . . . . . . . Heaviest Build 133 | 14 31 39 74 70 133 122 122 122 127 130 129 122 119 129 129 Greatest Support 120 | 40 40 40 60 40 60 68 60 72 72 72 120 100 110 120 120 Greatest Overweight (x) 7 | 1 2 1 1 1 2 2 5 1 1 3 7 7 1 1 1 Average Overweight (x) 1 | . . . . 1 1 1 1 1 1 1 1 2 . . . Largest Inventory Capacity 25 | 8 15 15 20 20 25 25 25 25 25 25 25 25 25 25 25 Average Capacity 23 | 6 11 15 18 20 21 25 25 25 25 25 25 25 25 25 25 Most Carried 25 | 3 14 15 20 19 24 25 25 25 25 25 25 25 25 25 25 Average Carried 21 | 2 9 14 15 18 19 24 20 24 20 21 22 24 24 24 24 Final Capacity 25 | 8 15 15 20 20 25 25 25 25 25 25 25 25 25 25 25 Final Carried 25 | 3 14 15 18 19 24 25 25 24 21 20 22 25 23 25 25 Class Distribution -------------------- 51% | Scavenger-Gunner 14% | Scavenger-Tank 13% | Scavenger-Skirmisher 11% | Mutant 7% | Scavenger-Mutant Dominant Class ---------------- Mutant | -10/Materials Mutant | -10/Mines Mutant | -10/Exiles Mutant | -9/Mines Scavenger-Gunner | -8/Materials Scavenger-Tank | -7/Factory Scavenger-Gunner | -7/Lower Caves Scavenger-Gunner | -7/Lower Caves Scavenger-Mutant | -7/Data Miner Scavenger-Tank | -6/Proximity Caves Scavenger-Skirmisher | -6/Factory Scavenger-Gunner | -6/Lower Caves Scavenger-Gunner | -6/Lower Caves Scavenger-Gunner | -6/Zion Scavenger-Gunner | -6/Deep Caves Resources | -11 -10 -10 -10 -9 -8 -7 -7 -7 -7 -6 -6 -6 -6 -6 -6 ----------- Run | Yrd Mat Min Exi Min Mat Fac Low Low Dat Pro Fac Low Low Zio Dee Matter Collected 8154 | 260 558 150 1092 76 611 1227 206 321 171 564 1872 372 325 57 292 Remotely . | . . . . . . . . . . . . . . . . Salvage Created 18217 | . 263 115 373 . 3721 5102 313 217 320 901 5680 336 554 . 322 Parts 912 | . 16 9 67 . 196 228 13 11 10 33 268 20 21 . 20 Haulers Intercepted 12 | . 1 . . . 5 2 . . . . 4 . . . . Recyclers Shooed 17 | . 1 . . . 1 6 . . . . 9 . . . . Parts Field Recycled . | . . . . . . . . . . . . . . . . Retrieved Matter . | . . . . . . . . . . . . . . . . Parts Self-Destructed 56 | . . . . . . . 6 . . 44 . . 6 . . Prevented 36 | . . . . . . . 7 11 . . . 10 8 . . Kills | -11 -10 -10 -10 -9 -8 -7 -7 -7 -7 -6 -6 -6 -6 -6 -6 ------- Run | Yrd Mat Min Exi Min Mat Fac Low Low Dat Pro Fac Low Low Zio Dee Combat Hostiles Destroyed 229 | . 4 4 2 . 50 62 5 3 3 12 69 1 8 . 6 Guns 98 | . 4 4 2 . 24 15 2 1 . 8 32 . 6 . . Cannons 51 | . . . . . 12 14 1 1 . 4 15 . . . 4 AOE 43 | . . . . . 12 23 1 . . . 4 . 1 . 2 Classes Destroyed 24 | . 5 3 2 . 7 3 . 1 . . . 1 1 . 1 Worker 16 | . . . . . 3 8 . . . . 5 . . . . Builder 23 | . . . . . 5 10 . . . . 8 . . . . Tunneler 3 | . . . . . . 2 . . . . 1 . . . . Hauler 12 | . 1 . . . 5 2 . . . . 4 . . . . Recycler 20 | . . . . . 7 7 . . . . 6 . . . . Mechanic 5 | . 1 . . . 3 1 . . . . . . . . . Operator 5 | . 1 . . . 4 . . . . . . . . . . Turret 1 | . . . 1 . . . . . . . . . . . . Watcher 17 | . 1 . . . 5 6 . . . . 5 . . . . Swarmer 24 | . . 1 . . 9 1 . . . 2 8 . 3 . . Grunt 119 | . 4 . . . 30 40 3 . . 6 33 . 3 . . Brawler 12 | . . . . . 1 6 . . . . 4 . 1 . . Duelist 7 | . . . . . 1 2 1 . . 3 . . . . . Protector 3 | . . . . . . 2 . . . . 1 . . . . Sentry 23 | . . 2 . . 7 6 1 1 . 1 5 . . . . Hunter 8 | . . . . . 1 . . 1 . 1 5 . . . . Programmer 16 | . . . . . . 5 . . . . 11 . . . . Heavy 2 | . . . . . 1 . . . . . 1 . . . . Behemoth 3 | . . . . . . . . 1 . . 1 1 . . . Enhanced Grunt 3 | . . . . . . . . . 3 . . . . . . Zionite 4 | . . . 4 . . . . . . . . . . . . Z-Light 5 | . . . . . . . . . . . . . . . 5 Samaritan 5 | . . . . . . . . . . . . 5 . . . Master Thief 1 | . . . . . . . . . . . . . 1 . . Assembled 2 | . . 1 1 . . . . . . . . . . . . Best Kill Streak 16 | . 3 2 3 . 7 16 5 1 1 5 9 1 4 . 3 Combat Bots Only 7 | . 2 2 1 . 4 7 5 1 1 5 6 1 4 . 3 Max Kills in Single Turn 3 | . 1 1 2 . 3 3 1 1 1 2 3 1 2 . 2 Gunslinging 1 | . . . . . . 1 . . . . . . . . . Exploded 2 | . . . . . 2 2 1 . . . 2 . 1 . 2 Melee . | . . . . . . . . . . . . . . . . Uniques/NPCs Destroyed 5 | . . . 4 . . . . . . . . . . . 1 8R-AWN (-10/Exiles) EX-HEX (-10/Exiles) EX-BIN (-10/Exiles) EX-DEC (-10/Exiles) Z-Imprinter (-6/Deep Caves) Combat | -11 -10 -10 -10 -9 -8 -7 -7 -7 -7 -6 -6 -6 -6 -6 -6 -------- Run | Yrd Mat Min Exi Min Mat Fac Low Low Dat Pro Fac Low Low Zio Dee Hostile Shots Fired 1220 | . 19 15 61 . 131 276 70 51 29 105 368 27 22 . 46 Missed 376 | . 3 2 18 . 30 100 27 19 8 34 111 8 7 . 9 Damage Taken 15655 | . 188 182 740 . 1913 2521 726 540 935 1222 4599 495 418 . 1176 Core 1791 | . 50 35 106 . 205 293 85 8 . 128 516 . 59 . 306 Absorbed by Shields 253 | . . . . . . 136 . . . . 117 . . . . Redirected to Shielding 455 | . . . . . . . . . . . 382 20 53 . . Ignored by Resistances 266 | . . . . . . 22 . 14 54 . 12 . . . 164 Regen/Repaired (Parts) 852 | . . . . . 137 62 . . . 385 268 . . . . Core Remaining (%) 52 | 100 . . . 23 62 . . . . 26 . . . . . Volleys Fired 717 | . 24 7 56 . 104 131 18 14 31 48 214 25 19 4 22 Largest 3 | . 2 2 2 . 3 3 3 3 2 3 3 3 3 1 2 Hottest 200 | . 70 48 60 . 166 187 177 169 119 159 200 175 190 90 165 Shots Fired 1455 | . 48 17 112 . 262 230 29 35 34 83 481 38 53 4 29 Gun 1077 | . 48 17 112 . 187 135 21 29 8 53 396 16 53 . 2 Cannon 322 | . . . . . 74 62 5 6 18 26 84 22 . 1 24 Launcher 45 | . . . . . 1 33 3 . 7 . 1 . . . . Special 11 | . . . . . . . . . 1 4 . . . 3 3 Kinetic 323 | . 47 17 112 . . 34 15 . 5 57 36 . . . . Thermal 101 | . 1 . . . . . . . . 22 44 15 . 1 18 Explosive 7 | . . . . . . . . . . . 1 . . 3 3 Electromagnetic 1019 | . . . . . 262 196 14 35 28 . 400 23 53 . 8 Robot Hit Streak 29 | . 10 14 8 . 25 15 14 7 8 7 29 16 11 . 6 Robot Miss Streak 8 | . 3 5 4 . 5 5 1 2 3 4 8 2 3 . 2 Penetration Max 2 | . . . 1 . . 2 . . . 2 . . . . . Secondary Targets 15 | . . . . . 5 1 . . . 2 6 . 1 . . Max Gunslinging Chain 1 | . . . . . 1 1 . . . 1 1 . 1 . . Shots Hit Robots 1020 | . 34 10 76 . 181 161 21 28 23 51 352 31 32 . 20 Core Hits 690 | . 15 6 27 . 142 179 10 12 7 29 220 13 16 . 14 Critical Kills 20 | . 1 . 4 . . 6 . . . 9 . . . . . Critical Parts Destroyed 26 | . . . 6 . . 9 3 . . 8 . . . . . Critical Strikes 65 | . 1 . 16 . 1 18 3 . 1 19 4 . 1 . 1 Destroy 55 | . 1 . 16 . . 15 3 . 1 19 . . . . . Corrupt 9 | . . . . . 1 3 . . . . 4 . 1 . . Sever 1 | . . . . . . . . . . . . . . . 1 Melee Attacks . | . . . . . . . . . . . . . . . . Impact . | . . . . . . . . . . . . . . . . Slashing . | . . . . . . . . . . . . . . . . Piercing . | . . . . . . . . . . . . . . . . Sneak Attacks . | . . . . . . . . . . . . . . . . Combat Hostiles . | . . . . . . . . . . . . . . . . Follow-up Attacks . | . . . . . . . . . . . . . . . . Damage Inflicted 29035 | . 494 166 1446 9 5327 7000 538 462 459 1281 9431 692 805 . 925 Guns 14598 | . 487 166 1446 . 2582 2042 267 296 42 715 5777 126 621 . 31 Cannons 6559 | . . . . . 1198 1416 84 55 252 566 1905 566 . . 517 Explosions 7760 | . . . . . 1528 3535 187 111 165 . 1740 . 184 . 310 Melee . | . . . . . . . . . . . . . . . . Ramming 51 | . 7 . . 9 19 7 . . . . 9 . . . . Kinetic 4065 | . 487 166 1446 . . 409 170 . 17 828 542 . . . . Thermal 5804 | . . . . . 1380 640 . 111 60 453 2145 447 184 . 384 Explosive 1072 | . . . . . . 209 . . . . 553 . . . 310 Electromagnetic 17976 | . . . . . 3928 5735 368 351 382 . 6182 245 621 . 164 Impact . | . . . . . . . . . . . . . . . . Slashing 67 | . . . . . . . . . . . . . . . 67 Piercing . | . . . . . . . . . . . . . . . . Highest Corruption 63 | . 5 5 5 5 3 19 40 52 53 63 46 55 56 56 . Average Corruption 29 | . 4 5 5 5 1 11 37 42 52 53 19 52 55 40 . Corruption Purged . | . . . . . . . . . . . . . . . . Corruption Blocked . | . . . . . . . . . . . . . . . . Effects 832 | . 10 17 43 9 6 60 61 100 25 88 195 98 116 4 . Message Errors 206 | . 5 6 9 1 2 17 22 23 6 16 43 30 24 2 . Matter Fused 177 | . 2 2 6 3 2 16 8 28 4 13 39 22 31 1 . Heat Flow Errors 99 | . 1 3 6 2 1 5 6 11 1 17 22 12 12 . . Energy Discharges 93 | . 1 1 5 . 1 6 10 10 2 15 16 13 13 . . Parts Rejected 5 | . . . 1 . . . . 1 . 1 2 . . . . Parts Fused 9 | . . 1 . . . 1 . 3 . . 2 . 2 . . Data Loss (minor) 92 | . . . 7 1 . 5 6 6 3 13 23 9 18 1 . Data Loss (major) 43 | . . 1 4 2 . 4 3 7 1 1 12 3 5 . . Misfires 42 | . . 3 5 . . 2 1 6 1 2 13 4 5 . . Alerts 15 | . 1 . . . . 1 3 1 1 1 4 . 3 . . Misdirections 1 | . . . . . . . . 1 . . . . . . . Weapon Failures 50 | . . . . . . 3 2 3 6 9 19 5 3 . . Overload Shots . | . . . . . . . . . . . . . . . . Overflow Damage 431 | . . . . . 90 90 . . . 34 122 56 . . 39 Projectiles 160 | . . . . . 19 38 . . . 34 4 56 . . 9 Explosions 271 | . . . . . 71 52 . . . . 118 . . . 30 Melee . | . . . . . . . . . . . . . . . . Knockbacks 1 | . . . . . . . . . . 1 . . . . . Impact . | . . . . . . . . . . . . . . . . Kinetic 1 | . . . . . . . . . . 1 . . . . . Secondary . | . . . . . . . . . . . . . . . . Self-Inflicted Damage 989 | . 3 . . . 261 347 48 . . . 259 . 71 . . Shots 32 | . . . . . 7 17 3 . . . 4 . 1 . . Rammed 9 | . 1 . . 1 4 1 . . . . 2 . . . . Targets Rammed 9 | . 1 . . 1 4 1 . . . . 2 . . . . Kicked . | . . . . . . . . . . . . . . . . Crushed . | . . . . . . . . . . . . . . . . Highest Temperature 517 | . 162 264 236 237 453 235 221 255 176 229 400 249 255 10 517 Average Temperature 82 | . 87 98 60 99 88 40 81 102 40 76 79 68 95 7 228 Received Heat Transfer 3449 | . 99 27 . . 630 676 180 114 . 285 1039 60 9 . 330 Effects 8 | . . . . . 3 . . . . . 1 . . . 4 Shutdowns 3 | . . . . . 2 . . . . . . . . . 1 Interference 1 | . . . . . . . . . . . 1 . . . . Matter Decay 3 | . . . . . 1 . . . . . . . . . 2 Damage (core) 1 | . . . . . . . . . . . . . . . 1 Siege Activations . | . . . . . . . . . . . . . . . . Robots Corrupted 41 | . . . . . 2 11 1 1 3 . 21 1 1 . . Combat Hostiles 37 | . . . . . 2 10 1 1 3 . 18 1 1 . . Parts Fried 132 | . . . . . 27 41 3 3 6 . 43 3 5 . 1 Impact Corruptions . | . . . . . . . . . . . . . . . . Robots Melted . | . . . . . . . . . . . . . . . . Combat Hostiles . | . . . . . . . . . . . . . . . . Parts Melted 7 | . . . . . 1 3 . . . . . 2 . . 1 Heat Transferred 6608 | . . . . . 1700 750 . 100 50 737 2175 700 100 . 296 Parts Sabotaged . | . . . . . . . . . . . . . . . . Parts Stolen 3 | . . . . . . . . . . . . . 3 . . Parts Stripped . | . . . . . . . . . . . . . . . . Power Chain Reactions 39 | . . . . . 16 9 . 2 1 . 9 . 2 . . Alert | -11 -10 -10 -10 -9 -8 -7 -7 -7 -7 -6 -6 -6 -6 -6 -6 ------- Run | Yrd Mat Min Exi Min Mat Fac Low Low Dat Pro Fac Low Low Zio Dee Peak Influence 1887 | . 153 112 . . 867 1887 . . . . 1740 . . . . Initial 394 | . . 7 . . . 394 . . . . 56 . . . . Average 567 | . 29 46 . . 440 897 . . . . 665 . . . . Maximum Alert Level 5 | . . . . . 3 5 . . . . 5 . . . . Low Security (%) 35 | 100 100 100 . 100 31 . . . . . 33 . . . . Level 1 9 | . . . . . 16 8 . . . . 8 . . . . Level 2 17 | . . . . . 29 20 . . . . 15 . . . . Level 3 21 | . . . . . 23 40 . . . . 18 . . . . Level 4 10 | . . . . . . 24 . . . . 14 . . . . Level 5 2 | . . . . . . 1 . . . . 6 . . . . High Security 1 | . . . . . . 4 . . . . 2 . . . . Max Security . | . . . . . . . . . . . . . . . . Sterilizations 1 | . . . . . 1 . . . . . . . . . . Squads Dispatched 66 | . 2 . . . 10 22 . . . 1 31 . . . . Investigation 9 | . 1 . . . 1 3 . . . . 4 . . . . Extermination 12 | . . . . . . 3 . . . . 9 . . . . Reinforcement 15 | . 1 . . . 5 3 . . . . 6 . . . . Assault 18 | . . . . . 1 9 . . . 1 7 . . . . Garrison 12 | . . . . . 3 4 . . . . 5 . . . . Intercept . | . . . . . . . . . . . . . . . . Searches Triggered . | . . . . . . . . . . . . . . . . Construction Impeded 4 | . . . . . 1 2 . . . . 1 . . . . Haulers Reinforced 4 | . . . . . . 1 . . . . 3 . . . . Active Scanning Responses . | . . . . . . . . . . . . . . . . Cargo Convoy Interrupts . | . . . . . . . . . . . . . . . . Stealth | -11 -10 -10 -10 -9 -8 -7 -7 -7 -7 -6 -6 -6 -6 -6 -6 --------- Run | Yrd Mat Min Exi Min Mat Fac Low Low Dat Pro Fac Low Low Zio Dee Distress Signals 6 | . 2 . . . 4 . . . . . . . . . . Communications Jammed . | . . . . . . . . . . . . . . . . Distress Signals . | . . . . . . . . . . . . . . . . Times Spotted 338 | . 11 6 30 . 66 87 5 3 5 24 85 1 8 . 7 Peak Tracking Total 9 | . 4 3 9 . 4 6 4 1 2 9 5 1 3 . 3 Tactical Retreats 25 | . . 1 11 . 3 6 . . . 1 3 . . . . Traps | -11 -10 -10 -10 -9 -8 -7 -7 -7 -7 -6 -6 -6 -6 -6 -6 ------- Run | Yrd Mat Min Exi Min Mat Fac Low Low Dat Pro Fac Low Low Zio Dee Traps Triggered 25 | . 6 . . . 3 9 . . . . 6 . 1 . . Indirectly 4 | . . . . . . 4 . . . . . . . . . Trap Hack Attempts . | . . . . . . . . . . . . . . . . Triggered . | . . . . . . . . . . . . . . . . Disarmed . | . . . . . . . . . . . . . . . . Reprogrammed . | . . . . . . . . . . . . . . . . Reused . | . . . . . . . . . . . . . . . . Traps Extracted . | . . . . . . . . . . . . . . . . Installed . | . . . . . . . . . . . . . . . . Triggered 6 | . . . . . . 4 . . . . 2 . . . . Machines | -11 -10 -10 -10 -9 -8 -7 -7 -7 -7 -6 -6 -6 -6 -6 -6 ---------- Run | Yrd Mat Min Exi Min Mat Fac Low Low Dat Pro Fac Low Low Zio Dee Machines Disabled 39 | . . . 11 . 7 6 . . 1 . 12 . . 2 . Max in Single Turn 4 | . . . 2 . 1 2 . . 1 . 4 . . 1 . Machines Repaired . | . . . . . . . . . . . . . . . . Machines Dismantled . | . . . . . . . . . . . . . . . . Machines Sabotaged . | . . . . . . . . . . . . . . . . Overloaded Fab Kills . | . . . . . . . . . . . . . . . . Hacking | -11 -10 -10 -10 -9 -8 -7 -7 -7 -7 -6 -6 -6 -6 -6 -6 --------- Run | Yrd Mat Min Exi Min Mat Fac Low Low Dat Pro Fac Low Low Zio Dee Machines Accessed 52 | . 7 1 2 . 9 9 1 1 4 . 17 . 1 . . Terminals 29 | . 6 . . . 5 5 . 1 . . 12 . . . . Fabricators 1 | . . . . . . . . . . . 1 . . . . Repair Stations 5 | . . . . . 1 2 . . . . 2 . . . . Recycling Units 5 | . 1 . . . 2 1 . . . . 1 . . . . Scanalyzers 2 | . . . . . 1 . . . . . 1 . . . . Garrison Access 1 | . . . . . . 1 . . . . . . . . . Total Hacks 135 | . 20 1 2 . 25 25 1 1 25 . 34 . 1 . . Successful 81 | . 9 1 2 . 14 10 1 1 25 . 17 . 1 . . Failed 54 | . 11 . . . 11 15 . . . . 17 . . . . Catastrophic 14 | . . . . . 3 3 . . . . 8 . . . . Database Lockouts . | . . . . . . . . . . . . . . . . Manual 39 | . 14 . 1 . 12 6 . 1 . . 5 . . . . Terminals 71 | . 19 . . . 14 14 . 1 . . 23 . . . . Fabricators 2 | . . . . . . . . . . . 2 . . . . Repair Stations 17 | . . . . . 5 7 . . . . 5 . . . . Recycling Units 7 | . 1 . . . 3 2 . . . . 1 . . . . Scanalyzers 6 | . . . . . 3 . . . . . 3 . . . . Garrison Access 2 | . . . . . . 2 . . . . . . . . . Terminal Hacks 51 | . 6 1 2 . 4 3 1 1 25 . 7 . 1 . . Record 15 | . . . 1 . . . . 1 11 . 2 . . . . Part Schematic 10 | . 1 . . . . 1 . . 7 . 1 . . . . Robot Schematic 4 | . . . . . . . . . 4 . . . . . . Robot Analysis 2 | . 1 . . . 1 . . . . . . . . . . Prototype ID Bank 4 | . 1 . . . . . . . 3 . . . . . . Open Door 3 | . . 1 . . . . 1 . . . . . 1 . . Branch Access Points 1 | . . . . . . 1 . . . . . . . . . Terminal Index 1 | . . . . . 1 . . . . . . . . . . Alert Level 2 | . . . . . 1 . . . . . 1 . . . . Unreport Threat 3 | . 2 . . . 1 . . . . . . . . . . Locate Traps 1 | . . . . . . . . . . . 1 . . . . Hauler Manifests 2 | . 1 . . . . . . . . . 1 . . . . Registered Components 2 | . . . . . . 1 . . . . 1 . . . . Derelict Proto ID Bank 1 | . . . 1 . . . . . . . . . . . . Fabricator Hacks 2 | . . . . . . . . . . . 2 . . . . Load Schematic 1 | . . . . . . . . . . . 1 . . . . Build 1 | . . . . . . . . . . . 1 . . . . Repair Station Hacks 12 | . . . . . 4 4 . . . . 4 . . . . Scan Component 7 | . . . . . 2 3 . . . . 2 . . . . Repair 5 | . . . . . 2 1 . . . . 2 . . . . Recycling Unit Hacks 6 | . 1 . . . 2 2 . . . . 1 . . . . Report Inventory 1 | . . . . . . 1 . . . . . . . . . Retrieve Components 5 | . 1 . . . 2 1 . . . . 1 . . . . Scanalyzer 5 | . . . . . 2 . . . . . 3 . . . . Insert Component 2 | . . . . . 1 . . . . . 1 . . . . Analyze 3 | . . . . . 1 . . . . . 2 . . . . Garrison Access Hacks . | . . . . . . . . . . . . . . . . Unauthorized Hacks 5 | . 2 . . . 2 1 . . . . . . . . . Terminals 5 | . 2 . . . 2 1 . . . . . . . . . Botnet 3 | . 1 . . . 1 1 . . . . . . . . . Operators 2 | . 1 . . . 1 . . . . . . . . . . Fabricators . | . . . . . . . . . . . . . . . . Repair Stations . | . . . . . . . . . . . . . . . . Recycling Units . | . . . . . . . . . . . . . . . . Scanalyzers . | . . . . . . . . . . . . . . . . Garrison Access . | . . . . . . . . . . . . . . . . Data Cores Recovered . | . . . . . . . . . . . . . . . . Used . | . . . . . . . . . . . . . . . . Hacking Detections 34 | . 4 . . . 8 7 . . . . 15 . . . . Full Trace Events 6 | . 1 . . . . 3 . . . . 2 . . . . Feedback Events 1 | . . . . . . 1 . . . . . . . . . Corruption 1 | . . . . . . 1 . . . . . . . . . Feedback Blocked . | . . . . . . . . . . . . . . . . Robot Schematics Acquired 8 | . . . . . . . . . 4 . . . . 4 . Robots Built . | . . . . . . . . . . . . . . . . Authchips . | . . . . . . . . . . . . . . . . Time . | . . . . . . . . . . . . . . . . Total Robot Build Rating . | . . . . . . . . . . . . . . . . Part Schematics Acquired 26 | . 1 . . . 1 1 . . 7 . 2 . . 14 . Parts Built 2 | . . . . . . . . . . . 2 . . . . Authchips . | . . . . . . . . . . . . . . . . Time 95 | . . . . . . . . . . . 95 . . . . Total Part Build Rating 10 | . . . . . . . . . . . 10 . . . . Parts Repaired 4 | . . . . . 2 1 . . . . 1 . . . . Time 269 | . . . . . 149 44 . . . . 76 . . . . Parts Recycled . | . . . . . . . . . . . . . . . . Recycled Matter . | . . . . . . . . . . . . . . . . Retrieved Matter . | . . . . . . . . . . . . . . . . Retrieved Components 48 | . 10 . . . 20 10 . . . . 8 . . . . Parts Scanalyzed 2 | . . . . . 1 . . . . . 1 . . . . Part Schematics Acquired 2 | . . . . . 1 . . . . . 1 . . . . Parts Damaged . | . . . . . . . . . . . . . . . . Bothacking | -11 -10 -10 -10 -9 -8 -7 -7 -7 -7 -6 -6 -6 -6 -6 -6 ------------ Run | Yrd Mat Min Exi Min Mat Fac Low Low Dat Pro Fac Low Low Zio Dee Used RIF Installer . | . . . . . . . . . . . . . . . . Robots Hacked . | . . . . . . . . . . . . . . . . Non-combat . | . . . . . . . . . . . . . . . . Combat . | . . . . . . . . . . . . . . . . Robot Hacks Applied . | . . . . . . . . . . . . . . . . Relay Couplers Released 4 | . . . . . . 4 . . . . . . . . . Programmers 4 | . . . . . . 4 . . . . . . . . . Fabnet Peak Effective % . | . . . . . . . . . . . . . . . . Robots Rewired 2 | . . . . . . . . . . 2 . . . . . Allies Hacked . | . . . . . . . . . . . . . . . . Hacks Repelled . | . . . . . . . . . . . . . . . . Allies | -11 -10 -10 -10 -9 -8 -7 -7 -7 -7 -6 -6 -6 -6 -6 -6 -------- Run | Yrd Mat Min Exi Min Mat Fac Low Low Dat Pro Fac Low Low Zio Dee Total Allies 15 | . . 3 . 1 . . . . 1 6 . . . 4 . Largest Group 4 | . . 3 3 1 1 . . . 1 4 2 . . 4 . Highest-Rated Group 188 | . . 40 40 31 31 . . . 96 188 70 . . 154 . Highest-Rated Ally 96 | . . 16 16 31 31 . . . 96 96 47 . . 39 . Total Orders 12 | . . . 1 . . . . . . 1 10 . . . . STAY 6 | . . . 1 . . . . . . . 5 . . . . AID 6 | . . . . . . . . . . 1 5 . . . . Ally Attacks 60 | . . . 10 . 1 4 . . . 43 2 . . . . Total Damage 1523 | . . . 39 . . 275 . . . 1146 63 . . . . Kills 11 | . . . 1 . . 2 . . . 8 . . . . . Allies Corrupted . | . . . . . . . . . . . . . . . . Allies Melted . | . . . . . . . . . . . . . . . . Turrets Deployed 1 | . . . . . . 1 . . . . . . . . . Field Lobotomies 5 | . . . . . . . . . 1 4 . . . . . Intel | -11 -10 -10 -10 -9 -8 -7 -7 -7 -7 -6 -6 -6 -6 -6 -6 ------- Run | Yrd Mat Min Exi Min Mat Fac Low Low Dat Pro Fac Low Low Zio Dee Robot Analysis Total 2 | . 1 . . . 1 . . . . . . . . . . Derelict Logs Recovered 13 | . . 1 . . . . 1 2 . 3 . 3 1 2 . Drone Launches . | . . . . . . . . . . . . . . . . Drone Recoveries . | . . . . . . . . . . . . . . . . Exploration | -11 -10 -10 -10 -9 -8 -7 -7 -7 -7 -6 -6 -6 -6 -6 -6 ------------- Run | Yrd Mat Min Exi Min Mat Fac Low Low Dat Pro Fac Low Low Zio Dee Turns Passed 28148 | 65 1005 581 1879 376 3572 3169 1064 1925 340 1526 5096 1689 2146 2747 968 Spaces Moved 11058 | 42 843 388 805 156 1187 1021 333 786 105 510 1807 696 854 1141 384 Core 14 | 14 . . . . . . . . . . . . . . . Treads 9270 | 28 42 157 517 156 1129 1021 333 786 105 510 1625 482 854 1141 384 Legs 346 | . . . 288 . 58 . . . . . . . . . . Wheels 1428 | . 801 231 . . . . . . . . 182 214 . . . Hover . | . . . . . . . . . . . . . . . . Flight . | . . . . . . . . . . . . . . . . Fastest Speed 50 | 50 90 105 120 240 190 246 243 238 238 238 145 205 156 156 160 Average Speed 219 | 129 100 127 199 240 239 249 298 238 238 261 217 228 237 233 229 Slowest Speed 560 | 160 160 160 240 240 323 330 560 243 238 400 325 245 238 240 240 Overloaded Moves . | . . . . . . . . . . . . . . . . Propulsion Burnouts . | . . . . . . . . . . . . . . . . Robots Hopped . | . . . . . . . . . . . . . . . . Cave-ins Triggered . | . . . . . . . . . . . . . . . . Exploration Rate (%) 65 | 5 98 67 89 47 81 28 54 96 70 64 42 74 86 91 56 Regions Visited 15 Branch Regions 11 Pre-discovered Areas 5 | . . . 1 . . . . . 1 . . 2 . 1 . Known Exits Taken 7 | . . . . . 1 1 . . . 1 1 1 1 1 . Unknown Exits Taken 8 | 1 1 1 1 1 . . 1 1 1 . . . . . . Scrap Searched 23 | . . 1 . 2 . . 2 3 . 2 . 5 5 3 . Spaces Dug 12 | . . . . . . . . . . . 5 . . 7 . Terrain Destroyed 303 | . . . 22 . 49 56 4 . 4 19 110 1 14 7 17 Melee . | . . . . . . . . . . . . . . . . Projectile 60 | . . . 21 . . . 3 . . 19 15 1 . . 1 AOE 239 | . . . . . 49 54 . . 4 . 95 . 14 7 16 Terrain Rammed . | . . . . . . . . . . . . . . . . Walls Destroyed . | . . . . . . . . . . . . . . . . Machines Disabled . | . . . . . . . . . . . . . . . . Actions | -11 -10 -10 -10 -9 -8 -7 -7 -7 -7 -6 -6 -6 -6 -6 -6 --------- Run | Yrd Mat Min Exi Min Mat Fac Low Low Dat Pro Fac Low Low Zio Dee Total 13677 | 50 949 464 965 157 1707 1416 380 823 175 651 2596 756 931 1215 442 Wait 899 | . 34 44 40 . 288 123 . . 15 33 273 4 34 5 6 Move 11043 | 41 842 387 804 155 1186 1020 332 785 104 509 1806 695 853 1140 384 Hop . | . . . . . . . . . . . . . . . . Pick Up 216 | 3 15 10 23 1 26 26 7 10 7 16 43 9 4 10 6 Fast Attach 201 | 6 13 2 12 . 26 20 8 2 2 4 70 4 9 16 7 Attach 94 | . 2 . 3 . 15 13 7 3 10 6 24 3 1 4 3 Detach 32 | . 2 . 1 . 6 5 3 . 2 . 11 . . 2 . Swap 175 | . 4 3 11 . 15 44 2 1 . 8 62 8 . 11 6 Drop 277 | . 12 11 15 . 37 33 3 8 4 17 87 8 11 23 8 Fire 717 | . 24 7 56 . 104 131 18 14 31 48 214 25 19 4 22 Melee . | . . . . . . . . . . . . . . . . Ram 1 | . 1 . . . . . . . . . . . . . . Kick . | . . . . . . . . . . . . . . . . Crush 8 | . . . . 1 4 1 . . . . 2 . . . . Escape Stasis 4 | . . . . . . . . . . . 4 . . . . Rewire 10 | . . . . . . . . . . 10 . . . . . Trap . | . . . . . . . . . . . . . . . . Miscellaneous . | . . . . . . . . . . . . . . . . Route ------- -11/Scrapyard -10/Materials (discovered 5 exits: [*Mat x3] / *Min x2) -10/Mines (discovered 2 exits: [*Mat] / *Exi) -10/Exiles (discovered 2 exits: [*Min x2]) -9/Mines -8/Materials (discovered 3 exits: *Fac x3) -7/Factory (discovered 4 exits: *Fac / Sto / *Low x2) -7/Lower Caves -7/Lower Caves (discovered 2 exits: *Fac / *Dat) -7/Data Miner -6/Proximity Caves -6/Factory (discovered 3 exits: *Fac / *Low x2) -6/Lower Caves -6/Lower Caves (discovered 2 exits: *Fac / *Zio) -6/Zion (discovered 2 exits: *Dee / *Pro) -6/Deep Caves (discovered 1 exit: *Pro) History --------- Turn | Location | Event 16 | -11/Scrapyard | Discovered new exit (range 16) 66 | -11/Scrapyard | Entered Materials 232 | -10/Materials | Met 8R-AWN 266 | -10/Materials | Discovered new exit (range 8) 314 | -10/Materials | Build established: Mutant 333 | -10/Materials | Discovered new exit (range 15) 511 | -10/Materials | Discovered new exit (range 15) 648 | -10/Materials | Discovered new exit (range 14) 679 | -10/Materials | Found Prototype Ballistic Gun 679 | -10/Materials | Identified 8R-AWN's Boregun 742 | -10/Materials | Discovered new exit (range 15) 1071 | -10/Materials | Entered Mines 1073 | -10/Mines | Followed 8R-AWN into the Mines 1131 | -10/Mines | Learned 4 Materials zone layouts 1165 | -10/Mines | Assembled infested the area 1213 | -10/Mines | Met a Derelict who couldn't figure out how to use a Trap Extractor 1265 | -10/Mines | Discovered new exit (range 5) 1550 | -10/Mines | Discovered new exit (range 5) 1603 | -10/Mines | Assisted by bots powering up and referring to "LRC-V3" 1652 | -10/Mines | Entered Exiles 1652 | -10/Exiles | Accompanied by 3 allies 1677 | -10/Exiles | Discovered new exit (range 15) 1707 | -10/Exiles | Welcomed by 8R-AWN 1730 | -10/Exiles | Met EX-HEX 1773 | -10/Exiles | Met EX-BIN 1792 | -10/Exiles | Aligned with FarCom system 1794 | -10/Exiles | Given EX-Vault access code 1834 | -10/Exiles | Opened EX-Vault 1850 | -10/Exiles | Found Field Lobotomy Kit 1883 | -10/Exiles | Warned to stay clear of 0b10 Research branches 1936 | -10/Exiles | Met EX-DEC 1942 | -10/Exiles | Learned location of Zion (-6) 2068 | -10/Exiles | Discovered new exit (range 11) 2319 | -10/Exiles | Learned about 8R-AWN's background 2647 | -10/Exiles | Attacked by the Exiles 2752 | -10/Exiles | Lost 3 allies 2773 | -10/Exiles | Core integrity fell below 50% 2852 | -10/Exiles | Lost 5 parts (1p1n2u1w) 2857 | -10/Exiles | Destroyed 8R-AWN 2887 | -10/Exiles | Found 8R-AWN's Boregun 2891 | -10/Exiles | Found Prototype Device 2896 | -10/Exiles | Found Prototype Processor 3115 | -10/Exiles | Destroyed EX-HEX 3172 | -10/Exiles | Build established: Scavenger-Mutant 3186 | -10/Exiles | Destroyed EX-BIN 3192 | -10/Exiles | Destroyed EX-DEC 3225 | -10/Exiles | Found Prototype Processor 3230 | -10/Exiles | Found Deploy-a-Sentry 3266 | -10/Exiles | Identified Exp. Core Analyzer 3269 | -10/Exiles | Identified AS-neutralizer No. 17b 3291 | -10/Exiles | Identified Exp. Targeting Computer 3531 | -10/Exiles | Stole two prototypes: Field Lobotomy Kit, Deploy-a-Sentry 3531 | -10/Exiles | Entered Mines 3698 | -9/Mines | Received a Mining Laser from a helpful Derelict 3743 | -9/Mines | A weapon hastily lodged in a ceiling crevice suddenly fell to the ground 3816 | -9/Mines | Build established: Mutant 3876 | -9/Mines | Discovered new exit (range 13) 3907 | -9/Mines | Entered Materials 3907 | -8/Materials | Accompanied by 1 ally 3907 | -8/Materials | Evolved 4 slots: Propulsion x1, Utility x2, Weapon x1 3908 | -8/Materials | Identified exit to Factory 4199 | -8/Materials | Build established: Scavenger-Gunner 4448 | -8/Materials | Garrison activated, responded to threat 5514 | -8/Materials | Discovered exit to Factory (range 16) 6700 | -8/Materials | Discovered exit to Factory (range 15) 6707 | -8/Materials | First assault squad dispatched 6821 | -8/Materials | Repaired Exp. Heat Sink 6882 | -8/Materials | Repaired Hvy. EM Shotgun 7264 | -8/Materials | Sterilization system engaged 7264 | -8/Materials | Non-combat units ordered to evacuate 7364 | -8/Materials | Combat units ordered to evacuate 7479 | -8/Materials | Entered Factory 7479 | -7/Factory | Evolved 2 slots: Utility x2 7806 | -7/Factory | Build established: Scavenger-Tank 7952 | -7/Factory | Destroyed 7 combat bots 8034 | -7/Factory | DAS Turret deployed 8118 | -7/Factory | Found Prototype Launcher 8119 | -7/Factory | Identified Rocket Array 8257 | -7/Factory | Garrison activated, responded to threat 8448 | -7/Factory | Discovered new exit (range 15) 8493 | -7/Factory | Identified exit to Factory 9079 | -7/Factory | First assault squad dispatched 9153 | -7/Factory | Build established: Scavenger-Skirmisher 9528 | -7/Factory | Build established: Gunner 9564 | -7/Factory | System corruption reached 10% 9863 | -7/Factory | Build established: Scavenger-Tank 9885 | -7/Factory | Repaired Imp. EM Pulse Cannon 10326 | -7/Factory | Garrison activated, responded to threat 10502 | -7/Factory | High security lockdown imminent 10516 | -7/Factory | Identified exit to Storage 10516 | -7/Factory | Identified exit to Lower Caves 10582 | -7/Factory | High security lockdown engaged 10648 | -7/Factory | Entered Lower Caves 10698 | -7/Lower Caves | Lost 5 parts (1n2u2w) 10736 | -7/Lower Caves | System corruption reached 30% 11247 | -7/Lower Caves | Attracted the attention of an 0b10 checkpoint 11249 | -7/Lower Caves | Core integrity fell below 50% 11686 | -7/Lower Caves | Discovered new exit (range 8) 11712 | -7/Lower Caves | Entered another Lower Caves area 11875 | -7/Lower Caves | Spotted B-75 Beast 11898 | -7/Lower Caves | Destroyed B-75 Beast 11967 | -7/Lower Caves | Discovered exit to Factory (range 8) 11975 | -7/Lower Caves | Attracted the attention of an 0b10 checkpoint 12157 | -7/Lower Caves | Learned Factory non-interactive machine intel 12171 | -7/Lower Caves | Learned 4 Factory zone layouts 12270 | -7/Lower Caves | Build established: Scavenger-Gunner 13623 | -7/Lower Caves | Discovered new exit (range 5) 13637 | -7/Lower Caves | Entered Data Miner 13639 | -7/Data Miner | Discovered new exit (range 6) 13685 | -7/Data Miner | Met Data Miner 13715 | -7/Data Miner | Data Conduit disabled 13725 | -7/Data Miner | Acquired the access code to Warlord's prototype stash 13725 | -7/Data Miner | Learned location of Section 7 (-2) 13848 | -7/Data Miner | Lost 6 parts (3u3w) 13855 | -7/Data Miner | Assimilated Enhanced Grunt with FLK Orb 13977 | -7/Data Miner | Entered Proximity Caves 13977 | -6/Proximity Caves | Accompanied by 1 ally 14285 | -6/Proximity Caves | Build established: Scavenger-Tank 14686 | -6/Proximity Caves | Learned Factory terminal intel 14894 | -6/Proximity Caves | Attracted the attention of an 0b10 outpost 14939 | -6/Proximity Caves | Assimilated G-50 Soldier with FLK Orb 14942 | -6/Proximity Caves | Assimilated G-50 Soldier with FLK Orb 14948 | -6/Proximity Caves | Assimilated G-67 Veteran with FLK Orb 14960 | -6/Proximity Caves | Assimilated M-28 Smith with FLK Orb 14967 | -6/Proximity Caves | Lost 5 parts (1p2n2w) 15008 | -6/Proximity Caves | Lost 3 allies 15207 | -6/Proximity Caves | Build established: Scavenger-Mutant 15337 | -6/Proximity Caves | Attracted the attention of an 0b10 checkpoint 15416 | -6/Proximity Caves | Learned Factory terminal intel 15467 | -6/Proximity Caves | Discovered exit to Factory (range 8) 15503 | -6/Proximity Caves | Entered Factory 15503 | -6/Factory | Accompanied by 2 allies 15503 | -6/Factory | Evolved 2 slots: Propulsion x1, Utility x1 15505 | -6/Factory | Loaded intel: 256 non-interactive machine locations 15506 | -6/Factory | Loaded intel: 26 terminal locations 15675 | -6/Factory | Discovered new exit (range 15) 15719 | -6/Factory | Identified exit to Factory 15790 | -6/Factory | Build established: Scavenger-Skirmisher 16594 | -6/Factory | Garrison activated, responded to threat 16907 | -6/Factory | Repaired Lgt. Treads 17953 | -6/Factory | First assault squad dispatched 17979 | -6/Factory | System corruption reached 10% 18000 | -6/Factory | Garrison activated, responded to threat 18026 | -6/Factory | Lost 3 parts (1n2u) 18120 | -6/Factory | Spotted B-75 Beast 18152 | -6/Factory | Destroyed B-75 Beast 18180 | -6/Factory | Lost 3 parts (1p1n1u) 18290 | -6/Factory | Build established: Scavenger-Gunner 18781 | -6/Factory | Fabricated Imp. Medium Treads (x2) 18950 | -6/Factory | Discovered new exit (range 14) 18980 | -6/Factory | Identified exit to Lower Caves 19194 | -6/Factory | Lost 4 parts (2u2w) 19561 | -6/Factory | System corruption reached 30% 19625 | -6/Factory | Core integrity fell below 50% 19940 | -6/Factory | Found Prototype Launcher 19940 | -6/Factory | Identified Rocket Array 20077 | -6/Factory | Discovered exit to Lower Caves (range 4) 20420 | -6/Factory | Garrison activated, responded to threat 20477 | -6/Factory | High security lockdown imminent 20483 | -6/Factory | Lost 3 parts (1n1u1w) 20557 | -6/Factory | High security lockdown engaged 20599 | -6/Factory | Entered Lower Caves 21036 | -6/Lower Caves | Spotted B-75 Beast 21065 | -6/Lower Caves | Destroyed B-75 Beast 21093 | -6/Lower Caves | Lost 3 parts (1n1u1w) 21147 | -6/Lower Caves | Learned Factory non-interactive machine intel 21210 | -6/Lower Caves | Discovered new exit (range 11) 21275 | -6/Lower Caves | Identified exit to Lower Caves 22288 | -6/Lower Caves | Entered another Lower Caves area 22340 | -6/Lower Caves | Discovered exit to Factory (range 14) 24017 | -6/Lower Caves | Spotted S9-4XX(f) 24017 | -6/Lower Caves | Spotted 19-56R(f) 24018 | -6/Lower Caves | Encountered a Master Thief 24018 | -6/Lower Caves | Encountered a Master Thief 24021 | -6/Lower Caves | Adv. Energy Well stolen by Master Thief 24028 | -6/Lower Caves | Adv. Energy Well stolen by Master Thief 24030 | -6/Lower Caves | Destroyed 19-56R(f) 24315 | -6/Lower Caves | Build established: Scavenger-Skirmisher 24384 | -6/Lower Caves | Discovered new exit (range 9) 24399 | -6/Lower Caves | Identified exit to Zion 24434 | -6/Lower Caves | Entered Zion 24487 | -6/Zion | System corruption cleaned by Quarantine Array 24513 | -6/Zion | System corruption cleaned by Quarantine Array 24584 | -6/Zion | Received a visual enhancement algorithm 24719 | -6/Zion | Discovered new exit (range 12) 24745 | -6/Zion | Identified exit to Proximity Caves 25001 | -6/Zion | Learned Factory terminal intel 25272 | -6/Zion | Build established: Scavenger-Tank 25313 | -6/Zion | Found GAL Module 25896 | -6/Zion | Given the Hacking Drone Bay 25898 | -6/Zion | Found Prototype Device 25899 | -6/Zion | Identified Hacking Drone Bay 25921 | -6/Zion | Build established: Scavenger-Gunner 26535 | -6/Zion | Found Prototype Special Weapon 26535 | -6/Zion | Identified RU-N14's Throwing Claymores 26746 | -6/Zion | Found RU-N14's Throwing Claymores 26968 | -6/Zion | Imprinted 26971 | -6/Zion | Declared Zion's savior 27155 | -6/Zion | Discovered new exit (range 7) 27163 | -6/Zion | Saw the warning signs outside the Deep Caves entrance 27167 | -6/Zion | Identified exit to Deep Caves 27181 | -6/Zion | Entered Deep Caves 27181 | -6/Deep Caves | Accompanied by 4 allies 27671 | -6/Deep Caves | Attacked by Z-Imprinter 27693 | -6/Deep Caves | Destroyed Z-Imprinter 27711 | -6/Deep Caves | Core integrity fell below 20% 27737 | -6/Deep Caves | Lost 4 parts (2n1u1w) 27925 | -6/Deep Caves | Found Prototype Protection 27925 | -6/Deep Caves | Identified Zio. Weapon Casing 28089 | -6/Deep Caves | Discovered new exit (range 6) 28097 | -6/Deep Caves | Identified exit to Proximity Caves 28146 | -6/Deep Caves | Spotted AG-60355 28149 | -6/Deep Caves | Destroyed by AG-60355 with Assembled Focal Cannon Last Messages --------------- Acquired Zio. Light DM Reactor. U7-A89(o) is busy at the terminal. IP-8NU(z) Zio. Glidesys I severed. IP-8NU(z) destroyed. Destroyed Zio. Biocell. 5K-17K(z) destroyed. Zio. Light Carapace destroyed. Destroyed Zio. Glidesys I. VL-PJH(z) destroyed. Dropped Energy Well. Acquired Zio. Biocell. Acquired 45 matter. Acquired Prototype Protection. Identified Zio. Weapon Casing. Acquired 38 matter. Identified Zio. Laser-M. EXIT=FOUND EXIT=IDENTIFIED: PROXIMITY CAVES AG-60355: "DSI9AT1D G8OHIBQ29FWG 26R186 QD12WHW8W33 TDK1 81FTS" Map ----- +----------------------------------------------------+ | ??????????????????????????????????????????????? | | ??????????????????????????????????????????????? | | ?????????????????????????????????????????###### | | ???????????????????????????????????????### # | | ???????????????????????????????????????# | | ???????????????????????????????????????# ## | | ???????????????????????????????????????## #### | | ???????????????????????????????????????## ### | | ????????????????????????? ??????????## | | ?????????????????????? ?????????## ## | | ???????????????????? ! ! ?????????# #### | | ?????????????????? ! #????????# ##??? | | ???????????????* #????????# ##??? | | ????????????? g #????????# ##?? | | ??????????? M * ! ! #????????# #?? | | ??????????? ** ##???????# #?? | | ?????????? h* #???????# ##?? | | ?????????? [ ! #??????## #??? | | ????????? #?????## ##?? | | ????????? [ ####### ##? | | ????????? G *** l #? | | ????????""" [M # | | ????????" | | ?????????" ##### | | ????????" #???# ## | | ?????????" @ ##???# ##? | | ????????" # # #????## ###?? | | ????????" ###; ## ## ##?????## ##???? | | ????????""" ??????## ?# ####???????## ##????? | | ???????????????????#??? ?????????????####?????? | | ???????????????????????#??????????????????????? | | | | | | | | | | | | | | | | | | | | | | | | | | | | | | | | | | | | | | | +----------------------------------------------------+ Best States ------------- Heat Dissipation 64 Energy Generation 27 Energy Capacity 700 Matter Stores 300 Matter Capacity 300 Sight Range 16 Robot Scan Range 16 Terrain Scan Density 10 Armor Coverage 750 Resistance: TH 15 Resistance: EM 15 Propulsion Shielding 66 Weapon Shielding 100 Weapon Cycling 25 Evasion (%) 50 Targeting Accuracy 20 Melee Accuracy 6 Core Analysis 8 Recoil Reduction 4 Energy Filtering 30 Offensive Hacking 11 Authchip Count 5 Item Schematics ----------------- Huge Storage Unit | -10/Materials | Hacked Hvy. EM Shotgun | -8/Materials | Scanalyzed Med. Reactive Plating | -7/Factory | Hacked Adv. Transmission Jammer | -7/Data Miner | Free Fission Core | -7/Data Miner | Free Cmb. Gravmag System | -7/Data Miner | Free Antimatter Cannon | -7/Data Miner | Free Exp. Targeting Computer | -7/Data Miner | Free Lgt. Regenerative Plating | -7/Data Miner | Free Combat Drone Bay | -7/Data Miner | Free Imp. Medium Treads | -6/Factory | Scanalyzed Imp. Proton Missile Launcher | -6/Factory | Hacked 0b10 Decoder Chip [Scout] | -6/Zion | Archive Wave Gun | -6/Zion | Archive Remote Shield | -6/Zion | Archive Adv. Shield Generator | -6/Zion | Archive Enh. Optical Array | -6/Zion | Archive Lyr. Heavy Armor Plating | -6/Zion | Archive Beamcaster | -6/Zion | Archive Mak. Terrain Scanner | -6/Zion | Archive Myomer Leg | -6/Zion | Archive 0b10 Decoder Chip [Looter] | -6/Zion | Archive Mass Driver | -6/Zion | Archive Imp. Remote Datajack | -6/Zion | Archive Mak. Transmission Jammer | -6/Zion | Archive Imp. Arc Projector | -6/Zion | Archive Robot Schematics ------------------ X-67 Chaingunner | -7/Data Miner | Free G-47 Trooper | -7/Data Miner | Free Y-54 Guardian | -7/Data Miner | Free E-15 Imp | -7/Data Miner | Free H-66 Slayer | -6/Zion | Archive Y-72 Warden | -6/Zion | Archive G-50 Soldier | -6/Zion | Archive S-27 Virus | -6/Zion | Archive Fabricated ------------ Imp. Medium Treads | x2 | -6/Factory Alien Tech Used ----------------- None Achievements -------------- None Challenges ------------ None Game ------ Seed StasisImpulseFacilitator Manual? 0 Play Time 03:20:30 Cumulative 285.8 hours Start 2024.07.11 @ 17:58:41 End 2024.07.13 @ 17:21:38 Sessions 16 Manual Loads 0 Difficulty Rogue Special Mode None Game No. 232 Rogue 232 Adventurer 0 Explorer 0 Win Type - Total 23 Types 17/1/2/1/1/0/0/1/0 Lore% 78 Gallery% 86 Achievement% 89 Wizard Run 0 Options --------- Layout 1 ASCII 0 Keyboard 0 Movement Numpad Keybinds 0 Fullscreen 1 Font 24/Smallcaps Map View 50x35 Zoom Use 0% Tactical HUD 1 Map Filters NONE Filters NONE Steam 1 RUN: a4c1cefb-e7e9-404d-a65b-c604c8cb9a8f